bitfinex-derivatives/quotes_ETHF0:USTF0_20250607
["timestamp","ask_amount","ask_price","bid_price","bid_amount"]
[1749289934038,0.80385,2486.7,2486.6,5.50879172]
[1749289935035,1.93361587,2486.7,2486.6,5.50879172]
[1749289935227,0.80385,2486.7,2486.6,5.50879172]
[1749289935425,0.80385,2486.7,2486.6,4.70491172]
[1749289935623,1.93357263,2486.7,2486.6,4.70491172]
[1749289937236,1.93357263,2486.7,2486.6,5.50879172]
[1749289938738,1.93357263,2486.7,2486.6,4.70491172]
[1749289941141,1.12972263,2486.7,2486.6,5.50879172]
[1749289941636,1.95040787,2486.7,2486.6,5.50879172]
[1749289942139,1.95040787,2486.7,2486.6,4.70491172]
[1749289942439,1.95040787,2486.7,2486.6,5.50879172]
[1749289946240,1.95074669,2486.7,2486.6,5.50879172]
[1749289947335,1.95090311,2486.7,2486.6,5.50879172]
[1749289947844,1.95090311,2486.7,2486.6,5.43988]
[1749289948845,1.95090311,2486.7,2486.6,5.50879172]
[1749289958153,1.95090311,2486.7,2486.6,5.43988]
[1749289959152,1.14705311,2486.7,2486.6,5.43988]
[1749289959844,1.14705311,2486.7,2486.6,4.636]
[1749289959845,1.95091311,2486.7,2486.6,4.636]
[1749289960048,0.80396,2486.4,2486.3,4.626]
[1749289960249,5.15881311,2486.4,2486.3,4.626]
[1749289961049,5.15881311,2486.4,2486.3,5.42998]
[1749289961446,5.15881311,2486.4,2486.3,4.626]
[1749289962648,0.80398,2486.3,2486.2,0.00602446]
[1749289962847,3.89383311,2486.3,2486.2,0.00602446]
[1749289970158,3.89383311,2486.3,2486.2,0.07493618]
[1749289971556,2.61103311,2486.3,2486.2,0.07493618]
[1749289974359,2.60669163,2486.3,2486.2,0.07493618]
[1749289975065,1.94669163,2486.3,2486.2,0.07493618]
[1749289975262,1.94669163,2486.3,2486.2,0.87892618]
[1749289975468,1.94669163,2486.3,2486.2,0.07493618]
[1749289975962,0.80398,2486.3,2486.2,2.09103618]
[1749289978266,1.94707113,2486.3,2486.2,2.09103618]
[1749289978464,1.94712461,2486.3,2486.2,2.09103618]
[1749289978765,0.80398,2486.3,2486.2,2.09103618]
[1749289979365,1.94717366,2486.3,2486.2,2.09103618]
[1749289980060,3.2078,2486.4,2486.2,2.09103618]
[1749289980267,0.80394,2486.3,2486.2,2.09103618]
[1749289980462,0.80394,2486.3,2486.2,0.72363618]
[1749289981163,0.80394,2486.3,2486.2,1.52761618]
[1749289981364,0.80394,2486.3,2486.2,0.72363618]
[1749289985468,0.80394,2486.3,2486.2,0.07493618]
[1749289985769,1.92969774,2486.3,2486.2,0.07493618]
[1749289987575,5.13749774,2486.3,2486.2,0.07493618]
[1749289992271,1.92969774,2486.3,2486.2,0.07493618]
[1749289994272,1.92969774,2486.3,2486.2,1.43443618]
[1749289997688,1.92969774,2486.3,2486.2,0.07493618]
[1749289998386,2.59489774,2486.3,2486.2,0.07493618]
[1749289999288,3.89589774,2486.3,2486.2,0.07493618]
[1749290004697,3.89589774,2486.3,2486.2,0.00602446]
[1749290004896,3.89568196,2486.3,2486.2,0.00602446]
[1749290005598,2.59468196,2486.3,2486.2,0.07493618]
[1749290010301,5.80248196,2486.3,2486.2,0.07493618]
[1749290011402,5.13728196,2486.3,2486.2,0.07493618]
[1749290011704,1.92948196,2486.3,2486.2,0.07493618]
[1749290012197,1.92948196,2486.3,2486.2,1.38863618]
[1749290012398,1.92948196,2486.3,2486.2,2.04043618]
[1749290014197,1.92948196,2486.3,2486.2,0.72673618]
[1749290014398,1.92948196,2486.3,2486.2,0.07493618]
[1749290015601,5.13728196,2486.3,2486.2,0.07493618]
[1749290016807,5.13728196,2486.3,2486.2,0.00602446]
[1749290018813,5.13728196,2486.3,2486.2,0.67972446]
[1749290019812,5.13728196,2486.3,2486.2,0.74863618]
[1749290038321,4.01174,2486.3,2486.2,0.74863618]
[1749290038522,5.13703708,2486.3,2486.2,0.74863618]
[1749290039821,4.33309708,2486.3,2486.2,0.74863618]
[1749290040126,5.13707708,2486.3,2486.2,0.74863618]
[1749290040726,1.92927708,2486.3,2486.2,0.07493618]
[1749290040926,5.13707708,2486.3,2486.2,0.07493618]
[1749290051318,5.13378545,2486.3,2486.2,0.07493618]
[1749290052033,1.92598545,2486.3,2486.2,0.07493618]
[1749290052329,5.13378545,2486.3,2486.2,0.07493618]
[1749290053427,4.32980545,2486.3,2486.2,0.07493618]
[1749290053631,0.80387,2486.7,2486.2,12.91673618]
[1749290053820,1.12221855,2486.6,2486.5,0.80389]
[1749290054024,1.12221855,2486.6,2486.5,8.64569]
[1749290054223,4.01162,2486.9,2486.7,0.80384]
[1749290054434,0.80382,2486.9,2486.8,2.0474]
[1749290054626,1.92438078,2486.9,2486.8,2.7205]
[1749290055428,0.80382,2486.9,2486.8,3.52432]
[1749290055830,0.80382,2486.9,2486.8,2.7205]
[1749290056235,0.00602446,2487.1,2486.8,7.3545]
[1749290056236,0.80378,2487.0,2486.8,7.3545]
[1749290056438,0.00602446,2487.1,2487.0,0.80375]
[1749290058436,0.80375,2487.0,2486.9,1.388]
[1749290060140,0.80375,2487.0,2486.9,2.19179]
[1749290060428,0.80976446,2487.1,2487.0,0.06891172]
[1749290060632,0.80976446,2487.1,2487.0,1.36281172]
[1749290063336,0.80974446,2487.1,2487.0,2.16656172]
[1749290063936,0.80974446,2487.1,2487.0,1.36281172]
[1749290069242,0.80974446,2487.1,2487.0,0.06891172]
[1749290069442,1.48954446,2487.1,2487.0,0.06891172]
[1749290070144,0.00602446,2487.1,2487.0,0.87266172]
[1749290070743,0.00602446,2487.1,2487.0,2.15566172]
[1749290072442,0.80974446,2487.1,2487.0,1.35191172]
[1749290072744,0.80974446,2487.1,2487.0,4.70191172]
[1749290073442,0.80974446,2487.1,2487.0,5.50566172]
[1749290073643,0.80974446,2487.1,2487.0,4.70191172]
[1749290076558,0.80974446,2487.1,2487.0,0.06891172]
[1749290076758,0.80974446,2487.1,2487.0,4.71191172]
[1749290080154,0.80974446,2487.1,2487.0,5.51566172]
[1749290080852,0.80974446,2487.1,2487.0,4.71191172]
[1749290081051,0.80974446,2487.1,2487.0,5.51566172]
[1749290083758,1.89488124,2487.1,2487.0,4.71191172]
[1749290086966,1.89488124,2487.1,2487.0,0.06891172]
[1749290087158,1.89488124,2487.1,2487.0,5.51566172]
[1749290087358,1.89488124,2487.1,2487.0,4.71191172]
[1749290088062,1.89488124,2487.1,2487.0,5.51566172]
[1749290088356,1.09116124,2487.1,2487.0,5.51566172]
[1749290089568,1.89488124,2487.1,2487.0,5.51566172]
[1749290090262,1.89488124,2487.1,2487.0,4.71191172]
[1749290092766,1.89488124,2487.1,2487.0,5.51566172]
[1749290092965,1.89488124,2487.1,2487.0,4.71191172]
[1749290094866,1.89488124,2487.1,2487.0,5.51566172]
[1749290095168,1.89579563,2487.1,2487.0,5.51566172]
[1749290095869,1.89579563,2487.1,2487.0,4.71191172]
[1749290096061,1.89579563,2487.1,2487.0,5.51566172]
[1749290097264,1.89579563,2487.1,2487.0,4.71191172]
[1749290098570,1.89549113,2487.1,2487.0,4.71191172]
[1749290099372,1.89549113,2487.1,2487.0,5.51566172]
[1749290100269,1.09177113,2487.1,2487.0,5.51566172]
[1749290100474,0.00602446,2487.1,2487.0,5.51566172]
[1749290100671,0.00602446,2487.1,2487.0,6.87936172]
[1749290102568,1.09129694,2487.1,2487.0,6.87936172]
[1749290105476,1.89501694,2487.1,2487.0,6.87936172]
[1749290106177,1.09129694,2487.1,2487.0,6.87936172]
[1749290106578,0.00602446,2487.1,2487.0,6.87936172]
[1749290107080,0.80974446,2487.1,2487.0,6.87936172]
[1749290107273,0.80974446,2487.1,2487.0,2.23636172]
[1749290107472,0.80974446,2487.1,2487.0,4.69891172]
[1749290108781,0.80974446,2487.1,2487.0,5.50266172]
[1749290110877,0.00602446,2487.1,2487.0,5.50266172]
[1749290111076,0.80974446,2487.1,2487.0,5.50266172]
[1749290111278,0.00602446,2487.1,2487.0,5.50266172]
[1749290112070,0.00602446,2487.1,2487.0,6.78566172]
[1749290113575,0.80974446,2487.1,2487.0,6.78566172]
[1749290113776,0.80974446,2487.1,2487.0,5.50266172]
[1749290116182,0.00602446,2487.1,2487.0,5.50266172]
[1749290117886,0.80974446,2487.1,2487.0,5.50266172]
[1749290118384,0.00602446,2487.1,2487.0,5.50266172]
[1749290120488,0.00602446,2487.1,2487.0,6.77176172]
[1749290130196,0.00602446,2487.1,2487.0,9.97956172]
[1749290130392,0.00602446,2487.1,2487.0,6.77176172]
[1749290131688,0.00602446,2487.1,2487.0,9.97956172]
[1749290132090,4.01135,2487.7,2487.3,2.00914]
[1749290132295,1.08074732,2487.6,2487.5,0.80357]
[1749290132600,4.01134,2487.7,2487.6,0.80356]
[1749290132897,5.09112933,2487.7,2487.6,0.80356]
[1749290133696,4.01134,2487.7,2487.6,0.80356]
[1749290136001,3.2078,2487.7,2487.6,0.80356]
[1749290136797,0.80352,2487.8,2487.7,0.80353]
[1749290138098,0.00602446,2487.9,2487.8,0.8035]
[1749290138403,0.00602446,2487.9,2487.8,1.4698]
[1749290138903,0.80948446,2487.9,2487.8,1.4698]
[1749290139401,0.00602446,2487.9,2487.8,1.4698]
[1749290139602,0.80948446,2487.9,2487.8,1.4698]
[1749290141399,0.80948446,2487.9,2487.8,0.6663]
[1749290142407,0.80948446,2487.9,2487.8,1.4698]
[1749290146208,0.80948446,2487.9,2487.8,0.6663]
[1749290146504,0.80948446,2487.9,2487.8,1.4698]
[1749290146697,0.80948446,2487.9,2487.8,0.6663]
[1749290146902,0.8035,2487.8,2487.7,4.634]
[1749290148703,0.80353,2487.7,2487.6,0.6584]
[1749290148902,1.50543,2487.7,2487.6,5.2924]
[1749290149100,0.80356,2487.6,2487.5,0.00602446]
[1749290149302,5.29246,2487.6,2487.5,0.00602446]
[1749290149612,6.35994452,2487.6,2487.5,0.00602446]
[1749290149798,6.35992968,2487.6,2487.5,0.00602446]
[1749290155804,7.00332968,2487.6,2487.5,0.00602446]
[1749290156601,12.00332968,2487.6,2487.5,0.00602446]
[1749290156906,0.80375,2487.0,2486.9,4.634]
[1749290158799,0.80379,2486.9,2486.8,5.2943]
[1749290158999,0.80378,2487.0,2486.8,6.0981]
[1749290159205,0.80378,2487.0,2486.9,0.80379]
[1749290159608,0.80378,2487.0,2486.8,5.2943]
[1749290159905,0.80378,2487.0,2486.8,6.09809]
[1749290160410,0.80378,2487.0,2486.9,0.80379]
[1749290160609,0.80378,2487.0,2486.8,5.2943]
[1749290160912,0.80378,2487.0,2486.9,0.80379]
[1749290161613,0.80378,2487.0,2486.9,1.43869]
[1749290161911,0.80374,2487.1,2487.0,0.80375]
[1749290163210,0.6434,2487.2,2487.0,0.80375]
[1749290163414,3.8504,2487.3,2486.9,1.9664]
[1749290163614,0.80372,2487.2,2487.0,2.13523]
[1749290163916,0.80372,2487.2,2487.1,0.80372]
[1749290164214,0.80368,2487.3,2487.1,2.1352]
[1749290164411,0.80369,2487.2,2487.1,2.13521]
[1749290164612,0.80369,2487.2,2487.1,5.9665]
[1749290165010,0.80369,2487.2,2487.1,6.77022]
[1749290165204,0.80366,2487.3,2487.2,0.80367]
[1749290165516,0.80366,2487.3,2487.2,1.45219]
[1749290166417,0.80366,2487.3,2487.2,2.75229]
[1749290166717,0.80366,2487.3,2487.2,0.6485]
[1749290173214,0.80366,2487.3,2487.2,1.45219]
[1749290173421,0.80366,2487.3,2487.2,0.6485]
[1749290176324,1.88318568,2487.3,2487.2,0.6485]
[1749290178822,1.88318568,2487.3,2487.2,1.45219]
[1749290179422,1.88318568,2487.3,2487.2,3.49869]
[1749290179624,1.07952568,2487.3,2487.2,3.49869]
[1749290179823,1.88317568,2487.3,2487.2,2.695]
[1749290180127,1.88317568,2487.3,2487.2,3.49869]
[1749290181128,1.88317568,2487.3,2487.2,3.56760172]
[1749290183225,1.07952568,2487.3,2487.2,3.56760172]
[1749290188229,1.88317568,2487.3,2487.2,3.56760172]
[1749290188729,1.07952568,2487.3,2487.2,3.56760172]
[1749290191032,1.88317568,2487.3,2487.2,3.56760172]
[1749290193136,1.88317568,2487.3,2487.2,1.36131172]
[1749290193531,1.88317568,2487.3,2487.2,0.71741172]
[1749290193733,1.88317568,2487.3,2487.2,0.06891172]
[1749290196436,1.07952568,2487.3,2487.2,0.87259172]
[1749290196831,1.88317568,2487.3,2487.2,0.87259172]
[1749290197531,1.07952568,2487.3,2487.2,0.87259172]
[1749290197733,1.07952568,2487.3,2487.2,2.25529172]
[1749290198031,1.45073,2487.6,2487.5,0.80355]
[1749290198236,0.80355,2487.5,2487.4,0.80356]
[1749290198433,1.08161805,2487.5,2487.4,5.43356]
[1749290199037,1.08161805,2487.5,2487.4,6.80736]
[1749290205039,0.00602446,2487.9,2487.8,0.80346]
[1749290205238,0.00602446,2487.9,2487.8,4.63]
[1749290205239,0.80945446,2487.9,2487.8,4.63]
[1749290206139,1.47145446,2487.9,2487.8,4.63]
[1749290206937,1.47145446,2487.9,2487.6,1.4973]
[1749290206938,3.47395446,2487.9,2487.7,0.80349]
[1749290207133,3.47395446,2487.9,2487.7,5.43249]
[1749290207336,0.80346,2487.8,2487.7,5.43249]
[1749290208335,2.67052446,2487.9,2487.7,5.43249]
[1749290208534,0.80349,2487.8,2487.6,0.8035]
[1749290208734,0.80352,2487.6,2487.5,3.2078]
[1749290208942,0.80362,2487.3,2487.2,7.90571172]
[1749290209142,0.80362,2487.3,2487.2,4.69791172]
[1749290209337,0.80362,2487.3,2487.2,5.50156172]
[1749290209642,0.80361,2487.4,2487.2,5.43265]
[1749290210744,0.80361,2487.4,2487.2,4.629]
[1749290211036,0.80361,2487.4,2487.2,5.43262]
[1749290211742,0.80361,2487.4,2487.3,0.80361]
[1749290215643,3.8439,2487.5,2487.2,5.43263]
[1749290215847,0.80361,2487.4,2487.2,5.43263]
[1749290216540,0.80361,2487.4,2487.3,0.80361]
[1749290216848,0.80361,2487.3,2487.2,5.43263]
[1749290217150,0.80361,2487.4,2487.3,0.80362]
[1749290219652,0.80361,2487.4,2487.3,1.46422]
[1749290224356,0.80361,2487.4,2487.3,0.6606]
[1749290224655,0.80361,2487.4,2487.3,0.72951172]
[1749290228757,0.80361,2487.4,2487.3,0.6606]
[1749290229759,0.80361,2487.4,2487.3,0.72951172]
[1749290230658,0.80361,2487.4,2487.3,0.06891172]
[1749290231959,2.64502,2487.5,2486.9,3.2078]
[1749290232155,0.80372,2487.0,2486.9,4.69015]
[1749290232353,0.80372,2487.0,2486.9,8.5214]
[1749290232660,0.80372,2487.0,2486.9,9.32515]
[1749290232959,0.80371,2487.1,2487.0,0.80372]
[1749290234262,0.80371,2487.1,2486.9,6.11733]
[1749290234561,0.80371,2487.1,2486.9,7.46383]
[1749290234753,0.80372,2487.0,2486.9,6.6601]
[1749290235060,0.80371,2487.1,2487.0,0.80372]
[1749290235359,0.80371,2487.1,2487.0,2.16982]
[1749290235752,0.80371,2487.1,2487.0,1.3661]
[1749290237659,0.80371,2487.1,2487.0,2.16982]
[1749290239361,0.80371,2487.1,2487.0,1.3661]
[1749290239957,0.80371,2487.1,2487.0,1.43501172]
[1749290242263,0.80371,2487.1,2487.0,0.06891172]
[1749290248977,0.80371,2487.1,2487.0,0.87263172]
[1749290249776,0.80371,2487.1,2487.0,0.06891172]
[1749290250683,0.80371,2487.1,2487.0,0.87263172]
[1749290254079,0.80371,2487.1,2487.0,0.06891172]
[1749290254379,0.80371,2487.1,2487.0,0.87262172]
[1749290254577,0.80371,2487.1,2487.0,0.06891172]
[1749290255178,0.80371,2487.1,2487.0,0.87262172]
[1749290256391,0.80371,2487.1,2487.0,0.06891172]
[1749290257480,1.88382606,2487.1,2487.0,0.87263172]
[1749290258085,0.80371,2487.1,2487.0,0.87263172]
[1749290258280,1.88374038,2487.1,2487.0,0.87263172]
[1749290258580,1.88374038,2487.1,2487.0,0.06891172]
[1749290259079,1.88374038,2487.1,2487.0,0.87262172]
[1749290260682,1.88374038,2487.1,2487.0,0.06891172]
[1749290262383,1.08003038,2487.1,2487.0,0.87262172]
[1749290262583,0.6446,2487.4,2487.1,0.80367]
[1749290262784,0.80365,2487.2,2487.1,0.80367]
[1749290263084,1.8846247,2487.2,2487.1,0.80367]
[1749290263980,0.80369,2487.1,2487.0,2.14981172]
[1749290269486,0.80369,2487.1,2487.0,2.0809]
[1749290270489,0.80369,2487.1,2487.0,2.14981172]
[1749290271289,0.80369,2487.1,2487.0,2.0809]
[1749290274289,0.80369,2487.1,2487.0,2.14981172]
[1749290278494,0.80368,2487.2,2487.1,0.80367]
[1749290278690,1.88395783,2487.2,2487.1,0.80367]
[1749290280292,0.80369,2487.1,2487.0,2.14980172]
[1749290281397,0.80369,2487.1,2487.0,5.49860172]
[1749290284395,0.80369,2487.1,2487.0,4.69491172]
[1749290284592,0.80369,2487.1,2487.0,4.626]
[1749290284996,1.88406744,2487.1,2487.0,4.626]
[1749290285493,1.88406744,2487.1,2487.0,4.69491172]
[1749290285690,3.17596744,2487.1,2487.0,0.06891172]
[1749290293503,3.17594805,2487.1,2487.0,0.06891172]
[1749290302708,3.17594805,2487.1,2487.0,0.87263172]
[1749290302909,1.88404805,2487.1,2487.0,0.06891172]
[1749290303409,1.88404805,2487.1,2487.0,0.87263172]
[1749290303602,1.88404805,2487.1,2487.0,1.57393172]
[1749290303804,1.88395005,2487.1,2487.0,1.57393172]
[1749290304411,1.88395005,2487.1,2487.0,0.77021172]
[1749290304602,1.88395005,2487.1,2487.0,1.57393172]
[1749290305501,1.08026005,2487.1,2487.0,1.57393172]
[1749290305704,0.80367,2487.2,2487.1,0.80369]
[1749290305907,1.88370316,2487.2,2487.1,0.80369]
[1749290307111,0.80369,2487.1,2487.0,2.85320172]
[1749290309214,0.80369,2487.1,2487.0,7.47920172]
[1749290309412,0.80369,2487.1,2487.0,6.67551172]
[1749290310010,0.80369,2487.1,2487.0,7.47923172]
[1749290311817,0.80369,2487.1,2487.0,2.85323172]
[1749290312019,0.80369,2487.1,2487.0,7.47923172]
[1749290313920,0.80369,2487.2,2487.1,0.80369]
[1749290314113,1.88368267,2487.2,2487.1,2.20719]
[1749290316321,1.88368267,2487.2,2487.1,1.4035]
[1749290316715,1.88368267,2487.2,2487.1,2.20719]
[1749290321016,1.88368267,2487.2,2487.1,1.4035]
[1749290322825,0.80369,2487.1,2487.0,6.19991172]
[1749290323028,0.80369,2487.1,2487.0,5.39621172]
[1749290323716,0.80369,2487.1,2487.0,6.19991172]
[1749290324124,0.80369,2487.1,2487.0,7.51671172]
[1749290327126,0.80369,2487.1,2487.0,5.39621172]
[1749290329329,0.80369,2487.1,2487.0,5.3273]
[1749290330730,0.80369,2487.1,2487.0,6.13103]
[1749290330936,0.80369,2487.1,2487.0,5.3273]
[1749290333730,1.88484414,2487.1,2487.0,5.3273]
[1749290334330,1.88484414,2487.1,2487.0,5.39621172]
[1749290335824,1.88484414,2487.1,2487.0,4.69491172]
[1749290337732,1.88484414,2487.1,2487.0,0.06891172]
[1749290337944,1.88484414,2487.1,2487.0,4.69391172]
[1749290338829,1.88484414,2487.1,2487.0,0.06891172]
[1749290339030,1.88484414,2487.1,2487.0,4.69391172]
[1749290340932,1.88484414,2487.1,2487.0,0.06891172]
[1749290341231,1.88484414,2487.1,2486.7,0.00602446]
[1749290341232,0.80378,2486.8,2486.7,0.00602446]
[1749290341427,4.01158,2486.8,2486.7,0.00602446]
[1749290341619,5.09230561,2486.8,2486.7,0.00602446]
[1749290342327,6.40560561,2486.8,2486.7,0.00602446]
[1749290344334,6.40560561,2486.8,2486.7,0.07493618]
[1749290346440,5.09230561,2486.8,2486.7,0.07493618]
[1749290347137,4.01158,2486.8,2486.7,0.07493618]
[1749290347326,5.08957932,2486.8,2486.7,0.07493618]
[1749290347533,4.01158,2486.8,2486.7,0.07493618]
[1749290348932,0.80378,2486.8,2486.7,0.07493618]
[1749290353543,0.80378,2486.8,2486.7,0.00602446]
[1749290354536,0.80378,2486.8,2486.7,0.07493618]
[1749290355543,0.80378,2486.8,2486.7,0.00602446]
[1749290356544,0.80378,2486.8,2486.7,0.07493618]
[1749290357144,1.8808584,2486.8,2486.7,0.07493618]
[1749290357344,0.80378,2486.8,2486.7,0.07493618]
[1749290357547,1.88087211,2486.8,2486.7,0.07493618]
[1749290359553,1.88087211,2486.8,2486.7,0.00602446]
[1749290362557,1.88087211,2486.8,2486.7,0.07493618]
[1749290366758,1.88087211,2486.8,2486.7,0.00602446]
[1749290367661,1.88087211,2486.8,2486.7,0.07493618]
[1749290372562,1.88087211,2486.8,2486.7,1.39573618]
[1749290375770,1.88087211,2486.8,2486.7,0.07493618]
[1749290390184,1.89572596,2486.8,2486.7,0.07493618]
[1749290390681,1.89572596,2486.8,2486.7,1.46893618]
[1749290392883,1.89572596,2486.8,2486.7,0.07493618]
[1749290394077,1.89572596,2486.8,2486.7,0.00602446]
[1749290394983,1.89572596,2486.8,2486.7,0.07493618]
[1749290399189,1.8963931,2486.8,2486.7,0.07493618]
[1749290400192,1.8963931,2486.8,2486.7,1.40853618]
[1749290400592,1.0926131,2486.8,2486.7,2.21235618]
[1749290401195,1.8963931,2486.8,2486.7,2.21235618]
[1749290401697,1.0926131,2486.8,2486.7,2.21235618]
[1749290401987,1.8963931,2486.8,2486.7,2.21235618]
[1749290402197,1.8963931,2486.8,2486.7,2.14344446]
[1749290402389,1.0926131,2486.8,2486.7,2.14344446]
[1749290402591,0.6717,2487.2,2486.7,1.33962446]
[1749290402788,1.0939031,2487.1,2487.0,0.80372]
[1749290403485,0.80363,2487.3,2487.1,0.80366]
[1749290403691,0.80365,2487.3,2487.2,0.80366]
[1749290403887,3.2078,2487.4,2487.3,0.80362]
[1749290404197,0.80354,2487.6,2487.2,4.587]
[1749290404398,0.80351,2487.7,2487.5,0.80355]
[1749290404695,0.80351,2487.7,2487.6,5.2605]
[1749290406993,0.80352,2487.6,2487.4,0.80357]
[1749290407189,0.80352,2487.6,2487.5,4.625]
[1749290407700,0.80353,2487.6,2487.5,4.625]
[1749290408200,0.80353,2487.6,2487.5,5.42855]
[1749290409798,0.80353,2487.6,2487.5,4.625]
[1749290418601,0.80353,2487.6,2487.5,5.42855]
[1749290419008,0.80353,2487.6,2487.5,6.76775]
[1749290420106,0.80353,2487.6,2487.5,5.9642]
[1749290421106,0.80353,2487.6,2487.5,6.76775]
[1749290422108,0.80353,2487.6,2487.5,5.9642]
[1749290422309,0.6852,2487.8,2487.5,6.76772]
[1749290422910,0.80352,2487.6,2487.5,6.76772]
[1749290423810,0.8035,2487.7,2487.5,6.76773]
[1749290424009,0.8035,2487.7,2487.6,0.80352]
[1749290424306,0.8035,2487.7,2487.6,2.14072]
[1749290424508,0.8035,2487.7,2487.6,1.3372]
[1749290424703,0.00602446,2487.9,2487.8,0.80346]
[1749290424904,0.00602446,2487.9,2487.8,5.42646]
[1749290425504,0.00602446,2487.9,2487.8,6.76366]
[1749290426809,0.80944446,2487.9,2487.8,6.76366]
[1749290427111,0.00602446,2487.9,2487.8,6.76366]
[1749290429113,0.80944446,2487.9,2487.8,6.76366]
[1749290429314,0.00602446,2487.9,2487.8,6.76366]
[1749290429912,0.80944446,2487.9,2487.8,6.76366]
[1749290432816,0.80944446,2487.9,2487.8,5.9602]
[1749290433211,0.80944446,2487.9,2487.8,6.76365]
[1749290433417,0.00602446,2487.9,2487.8,6.76365]
[1749290435418,0.80944446,2487.9,2487.8,6.76365]
[1749290435716,0.80944446,2487.9,2487.8,6.83256172]
[1749290436717,0.80944446,2487.9,2487.8,6.76365]
[1749290445126,0.80346,2487.8,2487.7,0.6334]
[1749290445328,1.45936,2487.8,2487.7,5.2554]
[1749290445633,2.00882,2487.6,2487.3,27.5138]
[1749290445829,0.80359,2487.4,2487.3,24.306]
[1749290446031,0.80368,2487.1,2487.0,4.622]
[1749290446632,0.80367,2487.2,2487.0,4.622]
[1749290446826,0.80367,2487.2,2487.1,0.6385]
[1749290451133,3.2078,2487.4,2487.3,0.80361]
[1749290451431,3.2078,2487.4,2487.3,5.42561]
[1749290452435,4.01138,2487.4,2487.3,5.42561]
[1749290452930,3.2078,2487.4,2487.3,5.42561]
[1749290455534,0.80362,2487.3,2487.2,2.07804]
[1749290455837,4.01141,2487.4,2487.3,0.80361]
[1749290456836,0.80361,2487.4,2487.3,0.80361]
[1749290457335,0.80362,2487.3,2487.2,0.80362]
[1749290457530,0.80362,2487.3,2487.2,5.42662]
[1749290458036,0.8036,2487.4,2487.3,0.8036]
[1749290461734,5.2734,2487.6,2487.2,4.623]
[1749290461939,0.80362,2487.3,2487.2,5.42665]
[1749290462940,1.44941,2487.4,2487.3,0.80361]
[1749290463438,0.80361,2487.3,2487.2,5.42661]
[1749290467747,0.80361,2487.3,2487.2,0.80361]
[1749290467949,0.80361,2487.3,2487.2,5.42661]
[1749290468148,0.80361,2487.3,2487.2,4.623]
[1749290468649,0.80361,2487.3,2487.2,5.42665]
[1749290469547,0.80361,2487.3,2487.2,0.80365]
[1749290469746,2.00913,2487.2,2487.0,4.623]
[1749290469953,0.80368,2487.1,2487.0,4.623]
[1749290470248,0.80379,2486.8,2486.7,4.62902446]
[1749290470648,0.80379,2486.8,2486.7,0.00602446]
[1749290470848,0.80379,2486.8,2486.7,4.62902446]
[1749290476754,0.80379,2486.8,2486.7,0.00602446]
[1749290480349,0.80379,2486.8,2486.7,0.07493618]
[1749290489554,0.80376,2486.9,2486.7,0.07493618]
[1749290489762,0.80373,2487.0,2486.8,1.9549]
[1749290489956,0.80373,2487.0,2486.9,1.2809]
[1749290490258,0.80373,2487.0,2486.9,2.08464]
[1749290490862,0.80373,2487.0,2486.9,1.2809]
[1749290491161,0.80373,2487.0,2486.9,2.08465]
[1749290491361,0.80373,2487.0,2486.9,1.2809]
[1749290492057,0.80373,2487.0,2486.9,2.08465]
[1749290492257,0.80373,2487.0,2486.9,1.2809]
[1749290492757,0.80373,2487.0,2486.9,2.08464]
[1749290493055,0.80373,2487.0,2486.9,1.2809]
[1749290493664,0.80373,2487.0,2486.9,2.08464]
[1749290493965,0.80371,2487.0,2486.9,2.08464]
[1749290494961,0.80369,2487.1,2487.0,0.80371]
[1749290495159,0.80369,2487.1,2487.0,0.6709]
[1749290495354,3.8449,2487.4,2487.0,0.6709]
[1749290495560,0.80367,2487.2,2487.0,2.85919]
[1749290495862,0.80367,2487.2,2487.1,1.3846]
[1749290496870,3.2078,2487.4,2487.1,2.18826]
[1749290497071,0.80365,2487.2,2487.1,2.18826]
[1749290497267,0.80365,2487.2,2487.1,0.80366]
[1749290498069,0.80368,2487.1,2487.0,1.47459]
[1749290498270,0.80366,2487.2,2487.1,0.80366]
[1749290498872,0.80367,2487.1,2487.0,1.47459]
[1749290499072,0.80366,2487.2,2487.1,0.80367]
[1749290499367,0.80366,2487.2,2487.1,0.80365]
[1749290500068,0.80366,2487.2,2487.1,0.80366]
[1749290501971,0.80368,2487.1,2487.0,1.47459]
[1749290503573,0.6462,2487.4,2487.0,0.6709]
[1749290503875,0.80368,2487.1,2487.0,1.47458]
[1749290505475,0.80368,2487.1,2487.0,0.6709]
[1749290507373,0.80368,2487.1,2487.0,1.47461]
[1749290509079,0.80368,2487.2,2487.0,0.6709]
[1749290509377,0.80368,2487.2,2487.1,0.80368]
[1749290509570,1.89786712,2487.2,2487.1,0.80368]
[1749290509776,0.80368,2487.2,2487.1,0.80368]
[1749290510876,0.80368,2487.1,2487.0,1.54350172]
[1749290514773,0.80368,2487.1,2487.0,0.6709]
[1749290514978,0.80368,2487.1,2487.0,1.47461]
[1749290517881,0.80368,2487.1,2487.0,1.54352172]
[1749290518084,3.35168,2487.4,2487.0,1.54352172]
[1749290518278,0.80368,2487.1,2487.0,1.54352172]
[1749290518478,1.89951222,2487.1,2487.0,1.54352172]
[1749290519679,1.09583222,2487.1,2487.0,1.54352172]
[1749290519884,0.80366,2487.2,2487.1,0.80368]
[1749290520082,1.90016188,2487.2,2487.1,0.80368]
[1749290520285,1.90016188,2487.2,2487.0,0.73981172]
[1749290520286,0.80368,2487.1,2487.0,1.54350172]
[1749290520489,0.80369,2487.1,2487.0,1.54350172]
[1749290520984,0.80369,2487.1,2487.0,1.47459]
[1749290521379,0.80367,2487.2,2487.1,0.80368]
[1749290521580,1.90020919,2487.2,2487.1,5.43568]
[1749290521981,1.90020919,2487.2,2487.1,4.632]
[1749290523487,0.6462,2487.4,2487.1,4.632]
[1749290523691,3.2078,2487.5,2487.1,6.0043]
[1749290523986,1.09707126,2487.4,2487.3,0.80358]
[1749290524188,1.09707126,2487.4,2487.3,5.43558]
[1749290524390,1.09707126,2487.4,2487.3,6.09778]
[1749290525284,1.90065126,2487.4,2487.3,5.2942]
[1749290525692,1.90065126,2487.4,2487.3,4.632]
[1749290527995,0.80358,2487.4,2487.3,4.632]